bitfinex/quotes_ETHUSD_20260202
["timestamp","ask_amount","ask_price","bid_price","bid_amount"]
[1770031373703,0.36422572,2282.7,2282.1,0.919]
[1770031374082,0.36422572,2282.7,2282.0,9.04372569]
[1770031374285,0.36422572,2282.7,2282.2,0.919]
[1770031374606,0.0011,2282.8,2282.2,0.92]
[1770031374803,9.2517271,2283.7,2282.2,9.96372569]
[1770031375106,0.92528271,2283.6,2282.4,9.04372569]
[1770031375304,0.0011,2282.7,2282.4,9.04372569]
[1770031375904,0.0011,2283.7,2282.4,9.04372569]
[1770031376106,0.0011,2283.7,2282.4,10.13904102]
[1770031376316,0.0011,2283.7,2282.6,9.04372569]
[1770031376909,0.0011,2283.7,2282.8,9.04372569]
[1770031377079,0.0011,2283.7,2282.9,12.31709826]
[1770031377277,0.0011,2283.7,2282.9,2.35437257]
[1770031377504,0.0011,2283.7,2283.0,0.919]
[1770031379804,0.0011,2283.7,2283.0,9.96272569]
[1770031381597,0.0011,2283.7,2283.0,24.46272569]
[1770031381803,0.0011,2283.7,2283.1,2.44627257]
[1770031384685,0.0011,2283.7,2283.0,0.919]
[1770031385182,0.0011,2283.7,2283.1,14.5]
[1770031386800,0.0011,2283.8,2283.1,14.5]
[1770031387217,9.2517271,2284.5,2283.1,23.54372569]
[1770031387921,0.0011,2283.5,2283.1,23.54372569]
[1770031388135,9.2517271,2284.5,2283.3,8.98249638]
[1770031388837,9.2517271,2284.5,2283.4,23.48249638]
[1770031389007,9.2517271,2284.5,2283.5,0.919]
[1770031389211,0.0011,2284.7,2283.5,9.90149638]
[1770031390109,9.16306036,2284.7,2283.5,9.90149638]
[1770031390311,9.16306036,2284.7,2283.6,2.44014964]
[1770031391319,9.16306036,2284.7,2283.6,11.42264602]
[1770031391733,9.16306036,2284.7,2283.6,2.44014964]
[1770031392112,9.16306036,2284.7,2283.5,0.919]
[1770031394947,9.16306036,2284.7,2283.5,9.90149638]
[1770031399440,9.16306036,2284.7,2283.6,0.918]
[1770031399654,9.16306036,2284.7,2283.3,8.98249638]
[1770031399947,9.16306036,2284.7,2283.4,0.918]
[1770031400149,9.16306036,2284.7,2283.5,0.99004964]
[1770031400150,9.16196036,2284.5,2283.5,0.99004964]
[1770031400918,0.0011,2284.5,2283.5,9.97254602]
[1770031401335,0.0011,2284.5,2283.5,11.06735377]
[1770031401531,0.0011,2284.5,2283.5,9.97254602]
[1770031402447,9.16306036,2284.5,2283.5,9.97254602]
[1770031402651,9.16306036,2284.5,2283.6,1.0890546]
[1770031403357,0.0011,2284.5,2283.7,9.21606668]
[1770031404846,0.0011,2284.5,2283.7,10.3107462]
[1770031405053,0.0011,2284.7,2283.8,8.98249638]
[1770031405234,0.0011,2284.7,2283.7,1.32824982]
[1770031405235,0.0011,2284.7,2283.9,10.013571]
[1770031405429,0.0011,2284.7,2284.0,0.918]
[1770031410355,9.16306036,2284.7,2283.9,1.03107462]
[1770031410653,9.16306036,2284.7,2284.0,0.918]
[1770031413959,0.0011,2284.7,2284.0,9.90049638]
[1770031414262,0.0011,2284.5,2284.0,9.90049638]
[1770031414844,0.0011,2284.5,2284.0,0.918]
[1770031416228,0.0011,2284.5,2284.0,9.90049638]
[1770031416425,0.0011,2284.5,2284.1,0.99004964]
[1770031417030,0.0011,2284.5,2284.1,9.97254602]
[1770031419374,0.0011,2284.5,2283.8,0.001]
[1770031419549,0.0011,2284.5,2283.9,0.918]
[1770031420761,0.0011,2284.5,2283.9,10.11778582]
[1770031422876,0.0011,2284.5,2283.8,0.001]
[1770031423045,0.0011,2284.5,2284.0,0.918]
[1770031423745,9.18375336,2284.5,2284.0,0.918]
[1770031426171,9.18375336,2284.5,2284.1,0.001]
[1770031426358,0.0011,2284.3,2284.1,0.001]
[1770031428382,9.18375336,2284.3,2284.1,0.918]
[1770031429752,0.0011,2284.5,2284.1,0.918]
[1770031430366,9.2065817,2284.5,2284.1,0.918]
[1770031430567,10.12734987,2284.5,2284.1,0.918]
[1770031430982,0.92186817,2284.5,2284.1,0.918]
[1770031432852,0.92186817,2284.5,2283.8,0.001]
[1770031432853,10.12734987,2284.5,2283.8,0.001]
[1770031433057,9.2054817,2284.3,2283.5,0.919]
[1770031434066,9.2054817,2284.3,2283.5,0.001]
[1770031434263,9.2054817,2284.1,2283.5,0.001]
[1770031434995,9.2054817,2284.1,2283.2,0.918]
[1770031436677,0.92054817,2284.2,2283.3,9.04132526]
[1770031437286,10.12602987,2284.2,2283.3,9.04132526]
[1770031437468,0.92054817,2284.2,2283.3,9.04132526]
[1770031437669,9.2054817,2284.4,2283.4,0.99593253]
[1770031439072,9.2054817,2284.4,2283.4,10.03625779]
[1770031439797,9.2054817,2284.4,2283.5,0.001]
[1770031439971,0.0011,2284.3,2283.5,0.001]
[1770031440802,9.2065817,2284.3,2283.5,0.001]
[1770031441005,0.92065817,2284.2,2283.5,0.001]
[1770031442072,0.0011,2284.3,2283.5,0.001]
[1770031442881,9.2065817,2284.3,2283.5,0.001]
[1770031444201,0.0011,2284.3,2283.5,0.001]
[1770031446470,0.0011,2284.7,2283.6,9.04032526]
[1770031450198,0.0011,2284.7,2283.7,0.918]
[1770031450404,0.0011,2284.7,2283.8,10.42629438]
[1770031452102,0.0011,2284.7,2283.8,10.42729438]
[1770031452308,0.0011,2284.5,2283.8,10.42729438]
[1770031453902,9.53302619,2284.5,2283.8,0.001]
[1770031455515,0.0011,2284.5,2283.8,9.43146185]
[1770031456200,0.0011,2284.5,2283.8,0.001]
[1770031461721,9.53302619,2284.5,2283.8,0.001]
[1770031461922,9.53302619,2284.5,2283.5,0.001]
[1770031462132,9.53192619,2284.3,2283.5,0.001]
[1770031464036,9.53192619,2284.3,2283.7,0.001]
[1770031468322,0.95330262,2284.4,2283.7,0.001]
[1770031468521,0.0011,2284.5,2283.7,0.001]
[1770031469027,9.53302619,2284.5,2283.7,0.001]
[1770031469941,9.53192619,2284.3,2283.7,0.001]
[1770031472514,9.53192619,2284.1,2283.3,0.001]
[1770031472838,9.53192619,2283.9,2283.0,0.001]
[1770031473011,9.53192619,2283.7,2283.0,0.001]
[1770031476150,9.53192619,2283.5,2283.0,0.001]
[1770031476324,9.53192619,2283.5,2282.6,0.001]
[1770031476525,9.53192619,2283.5,2283.2,0.001]
[1770031476726,10.48511881,2283.4,2283.2,0.001]
[1770031477645,9.53192619,2283.6,2282.6,9.43146185]
[1770031479235,10.82607912,2283.8,2282.6,9.43146185]
[1770031483943,1.04766348,2283.8,2282.6,9.43146185]
[1770031484446,0.0011,2284.1,2282.6,9.43146185]
[1770031485413,9.77951564,2284.1,2282.6,9.43146185]
[1770031485820,9.77951564,2284.1,2282.8,9.11800065]
[1770031487853,0.0011,2284.1,2282.8,9.11800065]
[1770031488150,0.0011,2284.1,2283.2,9.80372578]
[1770031488345,0.0011,2284.1,2283.4,9.80372578]
[1770031489129,0.0011,2284.1,2283.1,9.80372578]
[1770031489130,0.0011,2283.9,2283.1,9.80372578]
[1770031489322,0.0011,2283.9,2283.2,0.919]
[1770031492752,9.07369141,2283.9,2283.2,0.919]
[1770031493153,0.0011,2283.9,2283.2,0.919]
[1770031493462,0.0011,2283.9,2283.2,11.79499836]
[1770031500973,0.0011,2284.1,2283.2,11.79499836]
[1770031500974,0.0011,2284.1,2283.3,9.80372578]
[1770031501172,0.0011,2284.1,2283.5,9.80372578]
[1770031501357,0.0011,2283.7,2283.5,9.80372578]
[1770031502267,0.0011,2283.7,2283.4,0.001]
[1770031503257,0.0011,2283.7,2283.5,0.918]
[1770031505087,9.07369141,2283.7,2283.4,0.001]
[1770031505273,0.0011,2283.7,2283.4,0.001]
[1770031505787,0.0011,2284.1,2283.4,9.80472578]
[1770031505983,0.0011,2284.3,2283.5,9.80372578]
[1770031508913,0.0011,2284.5,2283.5,9.77140613]
[1770031513082,0.0011,2284.5,2283.5,9.76020613]
[1770031513282,0.0011,2284.5,2283.4,0.001]
[1770031513283,0.0011,2284.5,2283.7,9.77140613]
[1770031513484,0.0011,2284.5,2283.8,0.918]
[1770031515488,0.0011,2284.3,2283.8,0.918]
[1770031515891,0.0011,2284.3,2283.7,9.77240613]
[1770031515892,9.13918598,2284.3,2283.9,0.918]
[1770031518083,9.13918598,2284.3,2283.7,0.001]
[1770031518397,9.13918598,2284.3,2283.8,0.918]
[1770031519603,0.0011,2284.3,2283.8,0.918]
[1770031521770,0.0011,2284.3,2283.8,10.68940613]
[1770031522296,0.0011,2284.5,2283.9,9.77140613]
[1770031522469,0.0011,2284.5,2283.8,0.918]
[1770031522670,9.13918598,2284.5,2283.8,0.918]
[1770031523300,9.13918598,2284.5,2283.9,1.06904061]
[1770031524802,9.13918598,2284.5,2284.0,0.918]
[1770031525097,0.0011,2284.5,2284.0,0.918]
[1770031525499,0.41546609,2285.3,2284.1,10.96273229]
[1770031525707,0.41546609,2285.3,2284.3,10.00497643]
[1770031525875,0.41546609,2285.3,2284.5,9.77140613]
[1770031526209,0.41546609,2285.3,2284.2,1.18807323]
[1770031526210,9.13918598,2285.3,2284.2,1.18807323]
[1770031526513,9.13918598,2285.3,2284.2,0.918]
[1770031528173,0.0011,2284.5,2284.2,0.918]
[1770031528778,0.0011,2284.5,2284.2,10.68940613]
[1770031530002,0.0011,2285.3,2284.2,10.68940613]
[1770031530180,0.0011,2285.3,2284.3,10.84034674]
[1770031531475,0.0011,2285.3,2284.5,9.77140613]
[1770031533105,0.0011,2285.3,2284.5,10.86572604]
[1770031533275,0.0011,2285.8,2284.5,10.86572604]
[1770031533276,0.0011,2285.8,2285.0,9.77140613]
[1770031533479,0.0011,2285.8,2285.2,9.77140613]
[1770031534006,0.0011,2285.8,2285.1,0.97714061]
[1770031534504,9.13918598,2285.8,2285.2,0.918]
[1770031536308,9.13918598,2285.8,2284.9,0.918]
[1770031538817,9.74866984,2285.6,2284.0,0.001]
[1770031539112,9.74866984,2285.1,2284.1,0.918]
[1770031539409,9.74866984,2285.1,2284.0,0.001]
[1770031540283,9.74866984,2285.1,2284.9,0.001]
[1770031540623,9.74866984,2285.1,2284.0,0.001]
[1770031542784,9.74866984,2284.0,2282.6,0.001]
[1770031543124,9.88576805,2284.1,2282.6,0.001]
[1770031543125,10.69077066,2283.9,2282.6,0.001]
[1770031543409,9.98816805,2284.1,2282.6,0.001]
[1770031543410,9.74866984,2283.7,2282.6,0.001]
[1770031543719,2.01031674,2283.8,2282.6,0.001]
[1770031543720,9.74866984,2283.5,2282.6,0.001]
[1770031544082,9.74866984,2283.3,2282.6,0.001]
[1770031544918,9.74866984,2283.9,2282.6,0.001]
[1770031545078,9.88576805,2284.1,2282.6,0.001]
[1770031545079,9.74866984,2283.6,2282.6,0.001]
[1770031548519,9.74866984,2283.6,2281.3,0.001]
[1770031548520,9.43315217,2282.6,2281.3,0.001]
[1770031548727,9.43315217,2282.6,2281.3,9.08223076]
[1770031548728,9.43115217,2282.6,2281.3,9.08223076]
[1770031548907,10.37426739,2282.5,2281.3,9.08223076]
[1770031549423,10.37426739,2282.5,2281.3,0.001]
[1770031549612,9.43115217,2282.2,2281.3,0.001]
[1770031550518,9.43115217,2282.2,2281.0,0.001]
[1770031550704,9.43115217,2282.1,2281.0,0.001]
[1770031550910,0.94311522,2282.0,2281.0,0.001]
[1770031551821,10.37426739,2282.0,2281.0,0.001]
[1770031552387,0.94311522,2282.0,2281.5,0.001]
[1770031552591,0.1024,2282.2,2280.9,7.54487071]
[1770031552809,0.1024,2282.2,2281.3,0.001]
[1770031553007,9.53355217,2282.2,2281.3,0.001]
[1770031554399,9.43115217,2282.2,2281.3,0.001]
[1770031554594,0.94311522,2282.1,2281.3,0.001]
[1770031555794,10.37426739,2282.1,2280.6,9.08123076]
[1770031558422,9.43115217,2281.9,2280.6,9.08123076]
[1770031560027,0.94311522,2282.1,2280.6,9.08123076]
[1770031560326,9.43115217,2282.2,2280.6,9.08123076]
[1770031561319,9.43115217,2282.2,2280.8,9.08123076]
[1770031561523,1.04551522,2282.5,2281.0,9.08123076]
[1770031561524,0.94311522,2282.5,2281.0,9.08123076]
[1770031561722,0.1024,2282.6,2281.0,9.08123076]
[1770031561910,9.43115217,2282.7,2281.0,9.08123076]
[1770031562117,9.43115217,2282.7,2281.0,9.03143076]
[1770031562317,9.43115217,2282.7,2281.2,9.08123076]
[1770031562911,0.1024,2282.9,2281.2,9.08123076]
[1770031563112,1.05575522,2282.9,2281.4,9.08123076]
[1770031563313,1.05575522,2282.9,2281.6,9.08123076]
[1770031565021,8.01110882,2284.2,2281.5,0.919]
[1770031565022,9.43115217,2283.6,2281.5,0.919]
[1770031565221,9.43115217,2283.6,2281.6,9.08123076]
[1770031565528,10.80476805,2283.7,2281.6,9.08123076]
[1770031565529,0.0011,2282.5,2281.6,9.08123076]
[1770031567002,0.1024,2283.2,2281.6,9.31480106]
[1770031567224,0.1035,2283.5,2281.6,9.31480106]
[1770031567404,9.53465217,2283.5,2281.8,9.08123076]
[1770031570623,9.53465217,2283.5,2281.9,9.29796878]
[1770031570935,9.53465217,2283.5,2282.1,9.29796878]
[1770031570936,9.89871637,2283.4,2282.1,9.29796878]
[1770031571141,10.85218159,2283.4,2282.1,9.29796878]
[1770031571762,10.00111637,2283.3,2282.1,9.29796878]
[1770031573338,10.00111637,2283.3,2282.1,10.21696878]
[1770031574039,10.00111637,2283.3,2282.1,9.29796878]
[1770031574246,10.99417453,2283.2,2282.1,10.21696878]
[1770031575244,1.09545816,2283.2,2282.1,10.21696878]
[1770031575446,0.1024,2283.4,2282.1,10.21696878]
[1770031575830,10.00111637,2283.4,2282.1,10.21696878]
[1770031576159,10.00111637,2283.4,2282.1,0.919]
[1770031578130,9.89871637,2283.1,2282.1,0.919]
[1770031579346,9.89871637,2283.1,2282.1,10.21696878]
[1770031579655,0.0011,2283.2,2282.2,10.31966566]
[1770031582466,9.89981637,2283.2,2282.2,1.02169688]
[1770031582627,9.89981637,2283.2,2282.1,0.919]
[1770031583769,9.89981637,2283.2,2282.1,10.21696878]
[1770031584334,0.0011,2283.2,2282.1,10.21696878]
[1770031587447,0.0011,2283.2,2282.1,11.31244703]
[1770031587748,0.0011,2283.2,2282.1,10.21696878]
[1770031588058,0.0011,2283.2,2282.3,9.29796878]
[1770031589277,0.0011,2283.2,2282.5,9.29796878]
[1770031589571,0.0011,2283.4,2282.6,9.29796878]
[1770031589953,0.0011,2283.4,2282.8,9.29796878]
[1770031590261,10.00111637,2284.3,2283.0,9.29796878]
[1770031590465,10.00111637,2284.1,2282.9,1.84879688]
[1770031590876,10.00111637,2284.1,2282.9,11.14676566]
[1770031591046,10.00111637,2284.1,2282.9,10.21696878]
[1770031591450,10.00111637,2284.1,2283.0,9.29796878]
[1770031592074,0.0011,2283.2,2283.0,9.29796878]
[1770031592250,9.978e-05,2283.2,2283.0,9.29796878]
[1770031592451,9.978e-05,2283.2,2283.1,10.31966566]
[1770031592880,0.1024,2284.1,2283.1,10.31966566]
[1770031593077,0.0011,2284.2,2283.1,10.31966566]
[1770031593779,0.0011,2284.4,2283.2,9.29796878]
[1770031593947,0.0011,2284.4,2283.6,9.29796878]
[1770031594150,0.39348548,2284.8,2283.8,9.29796878]
[1770031596274,0.39348548,2284.8,2283.9,9.29796878]
[1770031596679,10.29220185,2284.8,2283.8,2.96218888]
[1770031597678,0.39348548,2284.8,2283.8,12.26015766]
[1770031597882,0.39348548,2284.8,2283.9,1.41089545]
[1770031599165,0.39348548,2284.8,2283.9,10.71854981]
[1770031604268,0.39348548,2284.8,2283.8,2.96218888]
[1770031604269,9.67295514,2284.7,2283.8,2.96218888]
[1770031604796,9.67295514,2284.7,2284.1,0.001]
[1770031604993,0.0011,2284.6,2284.1,0.001]
[1770031605700,9.67405514,2284.6,2284.1,0.001]
[1770031607579,0.0011,2284.6,2284.1,0.001]
[1770031607872,0.39458548,2284.8,2284.1,0.001]
[1770031608077,0.39458548,2284.8,2284.1,1.02376544]
[1770031608687,9.94230041,2284.8,2284.1,1.02376544]
[1770031608871,9.94230041,2284.8,2284.1,0.001]
[1770031610705,9.94230041,2284.8,2283.8,2.96218888]
[1770031611290,9.94230041,2284.8,2283.7,0.918]
[1770031611291,9.54771493,2284.4,2283.7,0.918]
[1770031612908,9.54771493,2284.0,2282.9,0.001]
[1770031613078,9.54771493,2284.0,2283.0,0.918]
[1770031613284,9.54771493,2283.8,2283.0,0.918]
[1770031614324,9.54771493,2283.8,2281.5,0.12532742]
[1770031614325,4.05962899,2282.9,2281.5,0.001]
[1770031614504,4.16202899,2282.4,2281.5,0.001]
[1770031614798,4.16202899,2282.4,2281.1,9.89697086]
[1770031614799,4.22179707,2282.4,2281.1,9.89697086]
[1770031614969,4.22179707,2282.4,2281.1,0.001]
[1770031615172,9.13156521,2282.5,2281.1,0.001]
[1770031615173,0.1024,2282.2,2281.1,0.001]
[1770031615489,4.22179707,2282.2,2281.1,0.001]
[1770031617392,4.22179707,2282.2,2280.8,9.89697086]
[1770031617772,0.1024,2282.3,2280.8,9.89697086]
[1770031619079,0.1024,2282.5,2282.0,0.001]
[1770031619280,0.53215201,2282.5,2281.1,9.89597086]
[1770031619590,4.88288393,2282.5,2281.1,9.89597086]
[1770031620376,0.53215201,2282.5,2281.1,9.89597086]
[1770031620573,4.50580572,2282.7,2281.2,0.98959709]
[1770031620780,4.50580572,2282.7,2281.2,10.88556795]
[1770031621377,4.50580572,2282.7,2280.8,0.001]
[1770031621378,4.55800273,2282.4,2280.9,9.89597086]
[1770031621576,0.1024,2282.7,2280.8,0.001]
[1770031621577,9.13156521,2281.7,2280.8,0.001]
[1770031621881,5.47700273,2282.0,2280.8,0.001]
[1770031622620,5.47700273,2282.0,2280.8,9.89697086]
[1770031625075,1.0214,2282.0,2280.8,9.89697086]
[1770031625301,1.0214,2282.0,2280.9,10.88566795]
[1770031625889,0.1024,2282.2,2280.9,10.88566795]
[1770031628116,0.1024,2282.0,2280.9,10.88566795]
[1770031629623,0.1024,2282.3,2280.9,10.88566795]
[1770031629910,0.1024,2282.3,2281.1,10.19813219]
[1770031630283,9.13156521,2282.9,2281.1,10.19813219]
[1770031630284,10.05056521,2282.9,2281.1,10.19813219]
[1770031630600,0.1024,2282.7,2281.1,10.19813219]
[1770031630801,0.0011,2281.8,2281.1,10.19813219]
[1770031631002,0.0011,2281.8,2281.1,11.11713219]
[1770031631205,0.0011,2281.8,2281.3,10.19813219]
[1770031632616,0.0011,2282.0,2281.3,10.19813219]
[1770031633203,0.1024,2282.7,2281.3,10.19813219]
[1770031633712,0.0011,2283.0,2281.3,10.19813219]
[1770031635095,0.0011,2283.0,2281.5,10.19813219]
[1770031635718,0.0011,2283.0,2281.7,10.19813219]
[1770031641326,0.0011,2283.0,2281.9,10.19813219]
[1770031641496,0.0011,2283.0,2282.1,10.19813219]
[1770031641832,0.0011,2283.0,2282.3,10.19813219]
[1770031643141,0.0011,2282.8,2282.3,10.19813219]
[1770031644380,0.1024,2283.7,2282.4,10.19813219]
[1770031647137,4.86007075,2283.8,2282.4,10.19813219]
[1770031648719,4.86007075,2283.8,2282.5,10.19813219]
[1770031648917,5.34618783,2283.8,2282.7,10.19813219]
[1770031649118,5.34618783,2283.8,2282.7,11.11713219]
[1770031651137,4.86007075,2283.8,2282.7,11.11713219]
[1770031652430,4.86007075,2283.8,2280.6,7.21269992]
[1770031652431,5.94626058,2283.7,2281.9,10.19813219]
[1770031652631,7.83765023,2283.6,2282.1,10.19813219]
[1770031652935,1.99378965,2283.6,2282.1,10.19813219]
[1770031653554,1.99378965,2283.6,2282.3,10.19813219]
[1770031655442,0.0011,2283.6,2282.3,10.19813219]
[1770031658954,0.0011,2283.6,2282.4,14.5]
[1770031659163,0.0011,2283.6,2282.5,10.31532086]
[1770031662463,6.21378276,2283.6,2282.5,10.31532086]
[1770031665264,0.0011,2283.6,2282.5,10.31532086]
[1770031665467,0.0011,2283.6,2282.6,11.43875295]
[1770031666576,0.0011,2283.6,2282.8,10.31532086]
[1770031667473,0.0011,2283.6,2282.6,11.43875295]
[1770031667474,6.36649955,2283.6,2282.6,11.43875295]
[1770031667976,6.36649955,2283.6,2282.6,25.93875295]
[1770031668277,6.36649955,2283.6,2282.7,10.31532086]
[1770031668445,0.0011,2283.4,2282.8,3.62540738]
[1770031668644,0.0011,2283.4,2282.7,10.31532086]
[1770031670974,0.0011,2283.6,2282.6,12.03735246]
[1770031671282,0.0011,2283.6,2282.6,10.94211337]
[1770031671875,0.0011,2283.6,2282.6,12.03734665]
[1770031672177,0.0011,2283.8,2282.7,10.94211337]
[1770031672476,0.0011,2283.8,2282.9,10.94211337]
[1770031672645,0.0011,2283.8,2283.1,10.94211337]
[1770031675651,0.0011,2284.0,2283.2,10.94211337]
[1770031677249,6.67548421,2284.0,2283.0,11.86111337]
[1770031677450,0.66754842,2283.9,2283.0,13.04722471]
[1770031677649,6.67548421,2284.0,2283.0,13.04722471]
[1770031678288,0.0011,2284.0,2283.0,13.04722471]
[1770031680479,0.0011,2283.8,2283.0,13.04722471]
[1770031681355,0.0011,2283.8,2283.0,1.18611134]
[1770031681556,0.0011,2283.8,2283.0,0.919]
[1770031681956,0.0011,2283.8,2283.0,11.86111337]
[1770031688600,6.90520113,2284.4,2283.1,10.94907806]
[1770031689298,7.07247949,2284.6,2283.1,10.94907806]
[1770031689506,7.07247949,2284.6,2283.3,10.94907806]
[1770031689507,1.7696993,2284.5,2283.3,10.94907806]
[1770031689690,0.82494687,2284.5,2283.3,10.94907806]
[1770031689893,7.8145897,2284.5,2283.3,10.94907806]
[1770031692099,7.03023534,2284.3,2283.3,10.94907806]
[1770031692280,0.79751583,2284.2,2283.3,12.16266665]
[1770031692479,8.07542626,2284.1,2283.3,12.16266665]
[1770031693598,8.07542626,2284.1,2283.3,10.94907806]
[1770031693909,0.79751583,2284.2,2283.3,10.94907806]
[1770031693910,8.07542626,2283.8,2283.3,10.94907806]
[1770031694422,7.84779108,2284.2,2283.3,10.94907806]
[1770031694604,0.9458525,2284.1,2283.3,10.94907806]
[1770031694806,0.1035,2284.3,2283.3,10.94907806]
[1770031694971,0.94583791,2284.2,2283.3,12.04398587]
[1770031695175,0.94583791,2284.1,2283.3,12.04398587]
[1770031695381,1.17840862,2284.3,2283.3,12.04398587]
[1770031695698,0.9461485,2284.2,2283.3,12.04398587]
[1770031695904,0.9461485,2284.1,2283.3,12.04398587]
[1770031696095,1.17840862,2284.3,2283.3,12.04398587]
[1770031696294,1.181728,2284.2,2283.3,12.04398587]
[1770031696495,0.94618821,2284.1,2283.3,12.04398587]
[1770031699309,0.23553979,2284.2,2283.3,12.04398587]
[1770031699505,0.9466453,2284.1,2283.3,12.04398587]
[1770031699692,8.11225791,2284.0,2283.1,10.94907806]
[1770031699893,7.16560543,2284.0,2283.1,11.86707806]
[1770031700908,8.13091003,2283.9,2283.1,0.918]
[1770031701207,8.96230545,2283.8,2283.1,0.918]
[1770031701409,1.17698925,2284.0,2283.1,0.918]
[1770031701410,8.37938614,2284.0,2283.1,0.918]
[1770031701708,1.80802231,2284.2,2283.1,0.918]
[1770031701709,0.91660895,2283.9,2283.1,11.86707806]
[1770031701908,1.17698925,2284.1,2283.1,11.86707806]
[1770031701909,0.1024,2284.1,2283.1,11.86707806]
[1770031702076,1.23353084,2284.1,2283.3,10.94907806]
[1770031702281,8.45396248,2284.1,2283.2,1.18670781]
[1770031706102,8.45396248,2284.1,2283.4,0.001]
[1770031706408,0.0011,2283.9,2283.4,0.001]
[1770031712202,0.0011,2283.9,2283.4,10.95007806]
[1770031715316,0.0011,2283.9,2283.4,12.16375665]
[1770031716020,0.0011,2283.9,2283.4,0.001]
[1770031716390,0.0011,2283.9,2283.4,10.95007806]
[1770031716391,8.07672601,2283.9,2283.4,10.95007806]
[1770031718826,0.0011,2283.9,2283.4,10.95007806]
[1770031719023,8.07562601,2284.2,2283.5,11.10994648]
[1770031719202,8.07562601,2284.2,2283.6,12.02794648]
[1770031719402,8.07562601,2284.2,2283.6,13.23084113]
[1770031720206,8.07562601,2284.2,2283.6,13.23184113]
[1770031720526,0.0011,2283.7,2283.6,13.23184113]
[1770031720728,8.07562601,2284.2,2283.7,11.10994648]
[1770031720926,0.0011,2283.9,2283.7,11.10994648]
[1770031721099,8.07562601,2284.2,2283.7,12.43313059]
[1770031722429,8.07351304,2284.2,2283.7,12.43313059]
[1770031722628,15.62895287,2284.2,2283.7,1.32318411]
[1770031722930,15.62895287,2284.2,2283.6,0.919]
[1770031724306,7.58318999,2284.1,2283.6,0.919]
[1770031725116,8.07351304,2284.2,2283.6,0.919]
[1770031725501,7.01891617,2284.5,2283.6,12.02894648]
[1770031725718,7.01891617,2284.5,2283.7,1.20289465]
[1770031725916,7.01891617,2284.5,2283.7,12.31284113]
[1770031726436,8.07351304,2284.4,2283.7,12.31284113]
[1770031726947,0.0011,2284.6,2283.7,12.31284113]
[1770031727116,0.0011,2284.6,2283.9,11.10994648]
[1770031727318,8.07461304,2284.8,2284.0,11.10994648]
[1770031727522,8.07461304,2284.8,2284.1,12.02794648]
[1770031728341,8.07351304,2284.5,2284.1,0.918]
[1770031728517,15.1550605,2284.8,2284.1,0.918]
[1770031728712,8.07461304,2284.8,2284.1,0.918]
[1770031729032,8.07461304,2284.8,2284.2,1.26540321]
[1770031731416,8.07461304,2284.8,2284.2,13.00143533]
[1770031731617,0.0011,2284.8,2284.2,13.00143533]
[1770031731933,8.07461304,2284.8,2284.2,13.00143533]
[1770031732137,8.07351304,2284.6,2284.3,1.39194353]
[1770031732339,0.0011,2284.8,2284.3,1.39194353]
[1770031733117,0.0011,2284.8,2284.3,13.12797565]
[1770031733525,0.0011,2285.0,2284.4,11.73603212]
[1770031733723,10.43017628,2286.2,2284.7,11.73603212]
[1770031733724,0.0011,2285.5,2284.7,11.73603212]
[1770031733921,0.0011,2285.5,2284.9,11.73603212]
[1770031736623,8.07351304,2285.4,2284.8,0.918]
[1770031736840,8.07351304,2285.4,2284.9,13.00143533]
[1770031739633,8.07351304,2285.4,2284.9,1.26540321]
[1770031739836,0.0011,2285.5,2284.9,13.00143533]
[1770031740216,8.07351304,2285.4,2284.9,1.26540321]
[1770031740451,0.0011,2285.5,2284.8,0.918]
[1770031740452,8.07351304,2285.1,2284.8,0.918]
[1770031741568,8.07351304,2286.6,2285.3,11.73603212]
[1770031741722,8.07351304,2286.6,2285.1,1.08935585]
[1770031741723,8.07351304,2286.6,2285.5,11.7269803]
[1770031742047,8.07351304,2286.3,2285.6,1.26449803]
[1770031742222,8.07351304,2286.0,2285.5,11.7269803]
[1770031742545,8.07351304,2286.0,2285.4,0.918]
[1770031742749,8.07351304,2286.0,2285.4,12.65403212]
[1770031742930,8.07351304,2286.0,2285.5,1.26540321]
[1770031743133,8.07351304,2286.0,2285.5,11.73603212]
[1770031743334,11.67449104,2287.2,2285.6,11.73603212]
[1770031743630,8.07351304,2286.4,2285.6,11.73603212]
[1770031743948,8.07351304,2286.4,2285.7,0.918]
[1770031744151,8.07351304,2286.1,2285.3,11.73603212]
[1770031744357,8.88086434,2286.1,2285.6,0.918]
[1770031744658,8.88086434,2286.1,2285.3,11.73603212]
[1770031744827,8.88086434,2286.1,2285.5,0.918]
[1770031745954,8.07351304,2285.8,2285.0,11.73603212]
[1770031746158,0.8073513,2286.1,2285.2,0.918]
[1770031746159,8.07351304,2285.5,2285.2,0.918]
[1770031746355,8.88086434,2285.5,2285.2,0.918]
[1770031747850,0.0011,2285.9,2285.2,0.918]
[1770031747851,0.0011,2285.9,2285.2,12.59412839]
[1770031748241,8.07351304,2285.8,2285.2,12.59412839]
[1770031748453,0.0011,2285.9,2285.2,12.59412839]
[1770031748955,0.0011,2285.9,2285.2,0.918]
[1770031750728,0.0011,2285.9,2284.4,11.67712839]
[1770031750729,11.33979416,2285.8,2284.4,11.67712839]
[1770031750952,11.33979416,2285.8,2284.5,13.76184123]
[1770031752062,0.0011,2285.9,2284.7,11.67612839]
[1770031758264,0.0011,2285.9,2284.9,11.67612839]
[1770031758634,0.0011,2285.9,2285.1,11.67612839]
[1770031758833,0.0011,2285.9,2285.3,11.67612839]
[1770031759563,0.0011,2285.9,2285.3,11.67612839]
[1770031759966,0.0011,2285.9,2285.0,11.67612839]
[1770031760142,0.0011,2285.9,2285.0,12.59412839]
[1770031761436,0.0011,2285.9,2285.5,0.001]
[1770031762641,0.0011,2285.9,2285.5,11.67712839]
[1770031762862,0.0011,2285.9,2285.6,1.16771284]
[1770031763368,0.0011,2285.9,2285.5,12.59512839]
[1770031766153,0.22864335,2287.0,2285.6,11.67612839]
[1770031766340,12.91547668,2287.1,2285.6,11.67612839]
[1770031766341,11.34299416,2287.1,2285.6,11.67612839]
[1770031766545,1.04589956,2287.0,2285.6,11.67612839]
[1770031766741,11.34299416,2287.1,2285.6,11.67612839]
[1770031766957,1.13429942,2287.0,2285.8,11.67612839]